bitfinex/quotes_SOLUSD_20250107
["timestamp","ask_amount","ask_price","bid_price","bid_amount"]
[1736258518876,0.25098,214.31,214.24,23.776884]
[1736258520005,0.25098,214.31,214.22,9.29503173]
[1736258520904,0.25098,214.31,214.24,23.776884]
[1736258525935,0.25098,214.31,214.24,33.07191573]
[1736258527733,20.0,214.32,214.24,33.07191573]
[1736258527919,20.0,214.32,214.27,23.776884]
[1736258528434,20.0,214.32,214.27,33.07191573]
[1736258529335,20.0,214.32,214.26,33.07191573]
[1736258529704,0.12549,214.34,214.26,33.07191573]
[1736258530100,20.12549,214.34,214.24,9.29503173]
[1736258530405,20.12549,214.34,214.25,23.776884]
[1736258531929,20.0,214.34,214.25,23.776884]
[1736258532294,0.12549,214.33,214.25,23.776884]
[1736258533419,0.12549,214.31,214.24,26.0]
[1736258533618,0.12549,214.31,214.17,0.70010203]
[1736258533826,0.12549,214.31,214.16,148.373]
[1736258534026,0.12549,214.31,214.16,136.7]
[1736258535024,0.12549,214.26,214.15,1.5492]
[1736258535405,0.12549,214.26,214.16,23.776884]
[1736258535807,0.12549,214.26,214.15,1.5492]
[1736258536498,0.12549,214.26,214.17,23.776884]
[1736258537029,0.12549,214.26,214.16,23.776884]
[1736258537828,0.12549,214.26,214.16,33.07191573]
[1736258538032,0.12549,214.26,214.19,23.776884]
[1736258538511,20.0,214.27,214.19,23.776884]
[1736258538719,20.0,214.27,214.21,9.29503173]
[1736258538926,20.0,214.27,214.2,23.776884]
[1736258539238,20.0,214.27,214.19,23.776884]
[1736258539914,20.0,214.27,214.18,33.07191573]
[1736258540121,20.0,214.27,214.22,23.776884]
[1736258546627,20.0,214.27,214.2,23.776884]
[1736258547859,0.12549,214.29,214.2,23.776884]
[1736258548160,20.0,214.27,214.2,23.776884]
[1736258548823,0.12549,214.29,214.2,23.776884]
[1736258549455,20.0,214.28,214.2,33.07191573]
[1736258549756,20.0,214.28,214.2,59.07191573]
[1736258552861,20.0,214.28,214.22,23.776884]
[1736258553157,11.6654,214.31,214.22,33.07191573]
[1736258553158,20.0,214.31,214.22,33.07191573]
[1736258553536,20.0,214.31,214.22,23.776884]
[1736258555754,20.0,214.31,214.19,23.776884]
[1736258555963,20.0,214.31,214.23,23.776884]
[1736258558576,20.0,214.31,214.21,9.29503173]
[1736258558736,20.0,214.31,214.22,23.776884]
[1736258561466,0.12549,214.3,214.22,23.776884]
[1736258561685,0.12549,214.3,214.17,145.99503173]
[1736258561844,0.12549,214.3,214.17,136.7]
[1736258562346,0.12549,214.29,214.18,23.776884]
[1736258563782,0.12549,214.29,214.2,23.776884]
[1736258564089,0.12549,214.29,214.19,23.776884]
[1736258564563,0.12549,214.29,214.19,49.776884]
[1736258567676,0.12549,214.29,214.19,50.47700586]
[1736258567973,0.12549,214.29,214.19,24.47700586]
[1736258570445,7.11329,214.29,214.16,0.70012673]
[1736258570649,7.11329,214.29,214.17,9.29503173]
[1736258570885,7.11329,214.29,214.18,23.776884]
[1736258573485,0.12549,214.25,214.18,23.776884]
[1736258576892,0.12549,214.25,214.18,49.776884]
[1736258581590,20.0,214.26,214.18,59.07191573]
[1736258582987,20.0,214.26,214.18,49.776884]
[1736258586700,20.0,214.26,214.18,23.776884]
[1736258587199,0.12549,214.28,214.18,23.776884]
[1736258587701,21.749656,214.26,214.18,23.776884]
[1736258588178,0.12549,214.25,214.15,2.24935467]
[1736258588379,0.12549,214.25,214.16,9.29503173]
[1736258589000,0.12549,214.25,214.16,23.776884]
[1736258589300,0.12549,214.25,214.16,33.07191573]
[1736258589702,0.12549,214.25,214.16,59.07191573]
[1736258592898,0.12549,214.25,214.18,23.776884]
[1736258593102,21.66037184,214.26,214.18,23.776884]
[1736258595406,0.12549,214.25,214.18,23.776884]
[1736258595998,0.12549,214.25,214.18,49.776884]
[1736258599409,0.12549,214.25,214.17,23.776884]
[1736258602490,0.12549,214.25,214.17,49.776884]
[1736258606344,0.12549,214.25,214.17,23.776884]
[1736258608860,21.66037184,214.26,214.18,0.700179]
[1736258609140,21.66037184,214.26,214.19,23.776884]
[1736258609447,21.66037184,214.26,214.19,49.776884]
[1736258611447,21.66037184,214.26,214.18,23.776884]
[1736258614154,21.66037184,214.26,214.17,23.776884]
[1736258614446,21.66037184,214.26,214.17,49.776884]
[1736258615447,0.12549,214.25,214.17,49.776884]
[1736258615644,0.12549,214.25,214.15,1.5492]
[1736258615824,0.12549,214.25,214.14,7.26525817]
[1736258616221,0.12549,214.25,214.11,7.96551233]
[1736258616420,0.12549,214.2,214.11,7.26525817]
[1736258616824,6.7858,214.22,214.09,7.26525817]
[1736258616825,0.12549,214.18,214.09,7.26525817]
[1736258617755,0.12549,214.18,214.1,23.776884]
[1736258618250,0.12549,214.18,214.08,23.776884]
[1736258618629,0.12549,214.18,214.08,59.07191573]
[1736258618939,0.12549,214.18,214.1,23.776884]
[1736258620437,20.0,214.19,214.12,23.776884]
[1736258621047,20.0,214.19,214.11,23.776884]
[1736258621560,20.0,214.19,214.08,9.29503173]
[1736258621561,0.12549,214.18,214.08,9.29503173]
[1736258621768,0.12549,214.18,214.08,23.776884]
[1736258622964,0.12549,214.18,214.08,9.29503173]
[1736258624268,0.12549,214.18,214.09,23.776884]
[1736258625984,0.12549,214.18,214.09,33.07191573]
[1736258626643,0.12549,214.18,214.11,23.776884]
[1736258626844,20.0,214.19,214.11,33.07191573]
[1736258627081,20.0,214.19,214.12,23.776884]
[1736258627863,20.0,214.19,214.11,9.29503173]
[1736258628061,20.0,214.19,214.12,23.776884]
[1736258629774,20.0,214.19,214.12,49.776884]
[1736258631175,0.12549,214.18,214.08,23.776884]
[1736258631477,20.12549,214.18,214.08,33.07191573]
[1736258631678,20.12549,214.18,214.08,23.776884]
[1736258631974,20.12549,214.18,214.08,33.07191573]
[1736258632871,20.12549,214.18,214.1,23.776884]
[1736258637179,20.12549,214.18,214.08,23.776884]
[1736258637600,20.12549,214.18,214.07,23.776884]
[1736258640381,20.12549,214.18,214.07,49.776884]
[1736258641858,20.12549,214.18,214.07,26.0]
[1736258642259,20.12549,214.18,214.08,23.776884]
[1736258645190,20.12549,214.18,214.07,9.29503173]
[1736258645387,20.12549,214.18,214.06,9.29503173]
[1736258645694,20.12549,214.18,214.07,23.776884]
[1736258646196,20.12549,214.18,214.06,33.07191573]
[1736258646402,20.12549,214.18,214.07,23.776884]
[1736258647510,20.12549,214.18,214.09,23.776884]
[1736258647703,20.12549,214.18,214.09,33.07191573]
[1736258647878,20.12549,214.18,214.08,9.29503173]
[1736258648074,20.12549,214.18,214.08,26.0]
[1736258649383,20.12549,214.18,214.06,9.29503173]
[1736258650603,20.12549,214.18,214.08,33.07191573]
[1736258652400,20.12549,214.18,214.08,59.07191573]
[1736258654904,20.12549,214.18,214.1,23.776884]
[1736258655079,20.12549,214.18,214.08,9.99550061]
[1736258655573,20.12549,214.18,214.08,0.70046888]
[1736258655778,20.12549,214.18,214.07,33.07191573]
[1736258656402,20.12549,214.18,214.08,9.29503173]
[1736258657799,20.12549,214.18,214.09,23.776884]
[1736258659202,20.12549,214.18,214.08,23.776884]
[1736258659600,20.12549,214.18,214.07,23.776884]
[1736258659783,20.0,214.19,214.07,23.776884]
[1736258659983,20.0,214.15,214.05,10.92253173]
[1736258660184,20.0,214.15,214.06,23.776884]
[1736258661807,20.0,214.15,214.06,33.07191573]
[1736258661982,20.0,214.15,214.07,9.29503173]
[1736258665009,20.0,214.15,214.06,59.77246836]
[1736258665506,20.0,214.15,214.06,50.47743663]
[1736258665704,20.0,214.15,214.05,33.07191573]
[1736258667807,0.12549,214.14,214.05,33.07191573]
[1736258668187,0.12549,214.14,214.05,23.776884]
[1736258668698,0.12549,214.14,214.05,49.776884]
[1736258669301,20.0,214.13,214.05,49.776884]
[1736258669805,20.0,214.13,214.05,23.776884]
[1736258671508,20.0,214.13,214.05,33.07191573]
[1736258672895,20.0,214.13,214.05,59.07191573]
[1736258674012,20.0,214.13,214.07,23.776884]
[1736258674306,20.0,214.13,214.06,23.776884]
[1736258675010,20.0,214.13,214.07,9.29503173]
[1736258675317,20.0,214.13,214.05,9.99562129]
[1736258677318,20.0,214.13,214.06,23.776884]
[1736258678016,20.0,214.13,214.06,49.776884]
[1736258680523,20.0,214.13,214.02,11.93559596]
[1736258681323,20.0,214.13,214.03,23.776884]
[1736258681907,0.12549,214.12,214.03,23.776884]
[1736258683423,0.12549,214.12,214.03,49.776884]
[1736258694934,0.12549,214.12,214.0,4.27945854]
[1736258695111,0.12549,214.12,214.0,13.57449027]
[1736258696035,0.12549,214.1,213.98,2.64073038]
[1736258696237,0.12549,214.1,213.99,33.07191573]
[1736258696439,0.12549,214.1,214.01,23.776884]
[1736258696751,20.0,214.13,214.05,23.776884]
[1736258697320,0.12549,214.12,214.04,23.776884]
[1736258697833,0.12549,214.12,214.03,23.776884]
[1736258698036,0.12549,214.12,214.06,23.776884]
[1736258698940,0.12549,214.12,214.03,33.07191573]
[1736258699131,0.12549,214.12,214.04,0.70058989]
[1736258699941,6.689,214.16,214.05,33.07191573]
[1736258700148,6.689,214.16,214.06,9.99554621]
[1736258700444,0.12549,214.19,214.08,23.776884]
[1736258700636,33.7093429,214.2,214.08,24.47733952]
[1736258700835,20.0,214.17,214.08,24.47733952]
[1736258701045,14.7317495,214.2,214.1,23.776884]
[1736258701345,14.7317495,214.2,214.12,23.776884]
[1736258701520,14.7317495,214.2,214.12,24.47720484]
[1736258701847,14.7317495,214.2,214.12,33.77223657]
[1736258702036,14.7317495,214.2,214.12,59.77223657]
[1736258703547,14.7317495,214.2,214.12,50.47720484]
[1736258707453,14.7317495,214.2,214.12,59.77223657]
[1736258707966,14.7317495,214.2,214.14,23.776884]
[1736258708251,14.7317495,214.2,214.16,23.776884]
[1736258708553,14.7317495,214.2,214.18,23.776884]
[1736258709137,20.0,214.23,214.16,9.29503173]
[1736258709456,8.84197184,214.26,214.17,23.776884]
[1736258709625,8.84197184,214.26,214.19,23.776884]
[1736258709832,2.23947184,214.26,214.19,23.776884]
[1736258710763,1.66037184,214.26,214.19,23.776884]
[1736258712755,1.66037184,214.26,214.18,23.776884]
[1736258712952,21.66037184,214.26,214.18,23.776884]
[1736258713154,21.66037184,214.26,214.16,23.776884]
[1736258714668,0.12549,214.25,214.16,23.776884]
[1736258715039,0.12549,214.25,214.15,23.776884]
[1736258715976,20.0,214.24,214.15,23.776884]
[1736258716945,20.5791,214.24,214.15,23.776884]
[1736258719267,1.66037184,214.26,214.18,9.29503173]
[1736258719853,1.66037184,214.26,214.2,23.776884]
[1736258722472,1.66037184,214.26,214.19,26.0]
[1736258722857,1.66037184,214.26,214.2,23.776884]
[1736258723571,1.66037184,214.26,214.18,23.776884]
[1736258724477,1.66037184,214.26,214.19,0.0467]
[1736258728275,1.66037184,214.26,214.19,9.34173173]
[1736258728480,1.66037184,214.26,214.2,23.776884]
[1736258733405,1.66037184,214.26,214.2,49.776884]
[1736258733865,1.66037184,214.26,214.22,23.776884]
[1736258734071,7.3061934,214.4,214.28,20.0]
[1736258734273,7.3061934,214.4,214.28,21.96]
[1736258734792,0.25098,214.39,214.29,23.776884]
[1736258734973,0.12549,214.39,214.29,23.776884]
[1736258735391,0.25098,214.39,214.29,23.776884]
[1736258735800,20.12549,214.39,214.29,23.776884]
[1736258735982,0.12549,214.39,214.29,23.776884]
[1736258736675,2.5391,214.45,214.31,23.776884]
[1736258736869,2.5391,214.45,214.31,49.776884]
[1736258737106,20.0,214.43,214.31,49.776884]
[1736258737399,0.12549,214.44,214.31,49.776884]
[1736258737770,0.12549,214.42,214.31,23.776884]
[1736258737971,0.12549,214.42,214.31,9.29503173]
[1736258738187,1.86369857,214.49,214.3,23.776884]
[1736258738188,0.5791,214.5,214.4,9.29503173]
[1736258738474,0.5791,214.5,214.42,9.29503173]
[1736258738475,0.12549,214.49,214.42,9.29503173]
[1736258739096,0.12549,214.49,214.37,0.69946777]
[1736258739097,20.0,214.48,214.41,9.29503173]
[1736258739684,0.12549,214.47,214.41,9.29503173]
[1736258739876,0.12549,214.47,214.35,0.69947368]
[1736258740201,0.12549,214.47,214.32,11.25503173]
[1736258740402,0.12549,214.47,214.33,9.29503173]
[1736258741499,0.12549,214.42,214.34,23.776884]
[1736258741877,0.12549,214.42,214.33,9.29503173]
[1736258742099,0.12549,214.42,214.34,23.776884]
[1736258742303,0.12549,214.42,214.32,33.07191573]
[1736258745397,0.12549,214.42,214.32,23.776884]
[1736258746104,0.12549,214.42,214.29,11.53652012]
[1736258746274,0.12549,214.42,214.3,1.96]
[1736258746610,0.12549,214.42,214.3,23.776884]
[1736258748010,0.70459,214.42,214.3,23.776884]
[1736258749010,0.70459,214.42,214.3,33.07191573]
[1736258749508,0.12549,214.39,214.3,33.07191573]
[1736258749697,0.12549,214.39,214.32,23.776884]
[1736258750693,0.12549,214.39,214.3,33.07191573]
[1736258753191,0.12549,214.39,214.32,23.776884]
[1736258753713,0.12549,214.39,214.3,33.07191573]
[1736258754417,0.12549,214.39,214.3,23.776884]
[1736258754418,0.12549,214.37,214.3,23.776884]
[1736258754596,0.12549,214.37,214.27,9.99485687]
[1736258754797,0.12549,214.37,214.27,9.29503173]
[1736258755001,0.12549,214.37,214.27,23.776884]
[1736258758399,0.12549,214.37,214.25,27.98]
[1736258758600,0.12549,214.37,214.25,11.27503173]
[1736258759227,0.12549,214.37,214.26,23.776884]
[1736258759430,0.12549,214.37,214.26,33.07191573]
[1736258763017,0.12549,214.37,214.26,23.776884]
[1736258765529,0.12549,214.34,214.24,28.2353615]
[1736258765727,0.12549,214.34,214.22,11.27503173]
[1736258765933,0.12549,214.32,214.22,1.98]
[1736258766108,0.12549,214.32,214.22,11.27503173]
[1736258766308,0.12549,214.32,214.23,23.776884]
[1736258766615,0.12549,214.32,214.23,33.07191573]
[1736258767030,0.12549,214.32,214.23,23.776884]
[1736258767203,0.12549,214.3,214.2,11.27503173]
[1736258767609,0.12549,214.3,214.21,23.776884]
[1736258769230,0.12549,214.3,214.19,10.87953173]
[1736258769534,0.12549,214.3,214.2,23.776884]
[1736258770011,0.12549,214.3,214.19,23.823584]
[1736258770412,0.12549,214.28,214.19,0.0467]
[1736258772333,0.12549,214.28,214.19,9.34173173]
[1736258772713,0.5791,214.27,214.19,0.0467]
[1736258772915,0.5791,214.27,214.21,23.776884]
[1736258773433,6.66879,214.28,214.21,23.776884]
[1736258773647,6.66879,214.28,214.2,23.776884]
[1736258774318,6.66879,214.28,214.19,0.0467]
[1736258774520,6.66879,214.28,214.2,23.776884]
[1736258775736,6.66879,214.28,214.19,0.0467]
[1736258776332,6.66879,214.28,214.2,23.776884]
[1736258783050,20.0,214.29,214.21,9.29503173]
[1736258783222,20.0,214.29,214.22,23.776884]
[1736258783557,20.0,214.29,214.22,33.07191573]
[1736258784851,20.0,214.29,214.19,0.74675528]
[1736258785063,0.12549,214.28,214.19,0.0467]
[1736258785765,0.12549,214.29,214.19,0.0467]
[1736258814879,11.6669,214.28,214.19,0.0467]
[1736258815075,0.12549,214.27,214.19,0.0467]
[1736258815262,6.46329,214.27,214.19,0.0467]
[1736258832399,20.0,214.26,214.19,0.0467]
[1736258832800,0.12549,214.25,214.19,0.0467]
[1736258838085,15.49045426,214.29,214.19,0.0467]
[1736258840205,0.12549,214.25,214.19,0.0467]
[1736258863130,20.0,214.26,214.19,0.0467]
[1736258863434,20.0,214.26,214.19,23.823584]
[1736258867920,20.0,214.26,214.19,0.0467]
[1736258898969,20.0,214.26,214.19,23.823584]
[1736258902478,13.53045426,214.29,214.19,23.823584]
[1736258902882,0.12549,214.28,214.19,23.823584]
[1736258907991,0.12549,214.28,214.19,33.11861573]
[1736258908195,0.12549,214.28,214.19,33.81870966]
[1736258908887,0.12549,214.28,214.19,24.52367793]
[1736258909695,13.03045451,214.29,214.19,24.52367793]
[1736258910400,13.03045451,214.29,214.19,23.823584]
[1736258911903,0.12549,214.28,214.19,23.823584]
[1736258913572,0.12549,214.28,214.19,0.0467]
[1736258921530,0.70459,214.25,214.19,0.0467]
[1736258922313,0.12549,214.21,214.19,0.0467]
[1736258926101,20.0,214.22,214.19,0.0467]
[1736258926316,20.0,214.23,214.19,0.0467]
[1736258932628,0.12549,214.24,214.19,0.0467]
[1736258940639,0.12549,214.25,214.19,0.0467]
[1736258942951,0.12549,214.25,214.14,23.73429959]
[1736258943957,0.12549,214.25,214.14,33.02933132]
[1736258950170,0.12549,214.25,214.14,23.73429959]
[1736258950354,0.12549,214.23,214.13,1.6362]
[1736258951447,0.12549,214.2,214.13,1.6362]
[1736258956655,31.79619,214.22,214.09,1.6618]
[1736258959253,0.12549,214.2,214.09,1.6618]
[1736258960579,0.12549,214.2,214.09,10.95683173]
[1736258961156,31.6707,214.22,214.11,9.29503173]
[1736258962262,0.12549,214.21,214.11,9.29503173]
[1736258965606,0.12549,214.21,214.1,33.07191573]
[1736258971205,0.12549,214.21,214.1,23.776884]
[1736258973796,20.0,214.17,214.1,23.776884]
[1736258978715,20.0,214.17,214.1,33.07191573]
[1736258981409,20.0,214.17,214.1,23.776884]
[1736258983919,20.0,214.17,214.09,23.776884]
[1736258991818,20.0,214.17,214.09,33.07191573]
[1736258993221,0.12549,214.16,214.07,1.92]
[1736258993831,0.12549,214.17,214.07,1.92]
[1736258994326,0.12549,214.17,214.06,9.29503173]
[1736258994532,0.12549,214.17,214.07,23.776884]
[1736258995147,0.12549,214.17,214.06,33.07191573]
[1736258995353,0.12549,214.17,214.08,9.29503173]
[1736258995650,0.12549,214.17,214.07,9.29503173]
[1736258996320,0.12549,214.17,214.06,23.776884]
[1736258996321,0.12549,214.17,214.06,33.07191573]
[1736258996717,0.12549,214.17,214.07,9.99553101]
[1736258999122,0.12549,214.17,214.07,0.70049928]
[1736258999322,0.12549,214.17,214.06,9.99553983]
[1736259003125,0.12549,214.17,214.06,0.7005081]
[1736259003949,0.12549,214.14,214.05,23.776884]
[1736259005252,0.12549,214.14,214.02,1.94]
[1736259005430,0.12549,214.14,214.03,23.776884]
[1736259005950,0.12549,214.15,214.03,23.776884]
[1736259006456,0.12549,214.15,214.01,0.70060044]
[1736259006457,2.06549,214.15,214.01,9.29503173]
[1736259008426,2.06549,214.15,214.01,23.776884]
[1736259009054,2.06549,214.15,214.01,33.07191573]
[1736259012850,0.12549,214.13,214.0,33.07191573]
[1736259013160,6.16989,214.13,214.0,33.07191573]
[1736259014333,6.16989,214.13,214.01,9.29503173]
[1736259015156,0.12549,214.09,214.0,23.776884]
[1736259019338,0.12549,214.09,213.99,23.776884]
[1736259025171,0.12549,214.09,213.99,33.07191573]
[1736259029279,20.12549,214.09,213.99,33.07191573]
[1736259030175,20.12549,214.09,213.98,9.29503173]
[1736259031282,20.12549,214.09,213.98,23.776884]
[1736259031469,20.12549,214.09,213.98,33.07191573]
[1736259031669,31.80259,214.1,213.98,23.776884]
[1736259032188,0.12549,214.08,213.95,11.6848]
[1736259032370,0.12549,214.08,213.96,23.776884]
[1736259033287,0.12549,214.04,213.97,9.29503173]
[1736259033461,0.12549,214.04,213.94,1.92]
[1736259033658,0.12549,214.04,213.96,9.29503173]
[1736259035171,0.12549,214.04,213.95,23.776884]
[1736259035378,0.12549,214.04,213.97,9.29503173]
[1736259035671,0.12549,214.04,213.98,9.29503173]
[1736259035881,0.12549,214.04,213.99,9.29503173]
[1736259036077,0.12549,214.04,213.98,9.29503173]
[1736259036285,0.12549,214.04,213.96,9.29503173]
[1736259036794,0.12549,214.04,213.95,33.77280319]
[1736259038089,0.12549,214.04,213.95,33.07191573]
[1736259038269,0.12549,214.04,213.95,23.776884]
[1736259039791,0.12549,214.04,213.93,9.29503173]
[1736259040196,0.12549,214.04,213.92,22.90153173]
[1736259040570,0.12549,214.04,213.93,23.776884]
[1736259042092,0.12549,214.04,213.93,33.07191573]
[1736259042409,0.12549,214.04,213.94,9.29503173]
[1736259044202,6.61899,214.04,213.94,9.29503173]
[1736259046280,6.61899,214.04,213.93,33.07191573]
[1736259047627,6.61899,214.04,213.91,26.0]
[1736259047780,0.12549,214.0,213.89,14.30897485]
[1736259047976,0.12549,214.0,213.89,0.70097485]
[1736259048301,0.12549,214.0,213.88,1.6646]
[1736259048302,0.12549,214.0,213.88,1.92]
[1736259048679,0.12549,213.98,213.88,23.776884]
[1736259049282,0.12549,213.98,213.84,136.7]
[1736259049283,0.12549,213.96,213.84,136.7]
[1736259049482,0.12549,213.96,213.85,9.29503173]
[1736259049718,0.12549,213.96,213.86,23.776884]
[1736259050604,0.12549,213.96,213.86,9.29503173]
[1736259052434,0.12549,213.96,213.87,9.29503173]
[1736259053631,0.12549,213.96,213.86,9.29503173]
[1736259053934,0.12549,213.93,213.85,23.776884]
[1736259054222,0.12549,213.93,213.85,33.07191573]
[1736259054613,0.12549,213.93,213.85,23.776884]
[1736259055434,0.12549,213.93,213.85,33.07191573]
[1736259055833,0.12549,213.93,213.86,9.29503173]
[1736259056011,0.12549,213.93,213.85,23.776884]
[1736259056213,0.12549,213.93,213.87,9.29503173]
[1736259059322,0.12549,213.93,213.86,9.29503173]
[1736259060832,0.12549,213.93,213.82,13.632]
[1736259061032,0.12549,213.93,213.82,11.23503173]
[1736259062741,0.12549,213.93,213.83,23.776884]
[1736259063441,0.12549,213.93,213.82,11.23503173]
[1736259063818,0.12549,213.93,213.82,37.23503173]
[1736259065940,0.12549,213.93,213.83,9.29503173]
[1736259071249,0.70459,213.93,213.83,9.29503173]
[1736259071949,0.70459,213.93,213.82,9.29503173]
[1736259072245,0.70459,213.93,213.83,9.29503173]
[1736259072624,6.5042,213.92,213.82,23.776884]
[1736259072824,6.5042,213.92,213.83,9.29503173]
[1736259073134,0.12549,213.91,213.83,9.29503173]
[1736259075221,0.5791,213.93,213.87,9.29503173]
[1736259075424,20.0,213.94,213.84,23.776884]
[1736259075617,0.12549,213.93,213.85,9.29503173]
[1736259075821,0.12549,213.93,213.84,33.07191573]
[1736259076343,0.12549,213.93,213.83,9.29503173]
[1736259077837,0.12549,213.93,213.81,1.94]
[1736259078049,0.12549,213.91,213.82,9.29503173]
[1736259078423,0.12549,213.91,213.83,9.29503173]
[1736259079145,20.0,213.94,213.81,1.94]
[1736259079335,0.12549,213.91,213.81,9.29503173]
[1736259080348,0.12549,213.89,213.8,9.29503173]
[1736259081352,0.12549,213.89,213.79,23.776884]
[1736259081653,0.12549,213.89,213.81,9.29503173]
[1736259083652,0.12549,213.89,213.82,9.29503173]
[1736259087743,0.12549,213.89,213.81,9.29503173]
[1736259087944,22.5191,213.92,213.84,9.29503173]
[1736259088443,0.12549,213.91,213.84,9.29503173]
[1736259088639,0.12549,213.91,213.81,26.70136874]
[1736259088640,0.12549,213.91,213.81,26.0]
[1736259088949,0.12549,213.87,213.77,13.2825]
[1736259089154,0.12549,213.87,213.77,1.5879]
[1736259089358,0.12549,213.87,213.76,23.776884]
[1736259090160,0.12549,213.87,213.75,9.29503173]
[1736259090161,0.12549,213.87,213.75,23.776884]
[1736259090341,0.12549,213.87,213.76,9.29503173]
[1736259090952,0.12549,213.87,213.77,9.29503173]
[1736259091628,0.12549,213.87,213.76,9.29503173]
[1736259093928,0.12549,213.87,213.75,9.29503173]
[1736259094130,0.12549,213.87,213.72,2.28691222]
[1736259094131,0.12549,213.83,213.72,1.5854]
[1736259094330,0.12549,213.83,213.7,12.39976561]
[1736259094564,0.12549,213.81,213.72,9.29503173]
[1736259095131,0.12549,213.81,213.69,1.94]
[1736259095336,0.12549,213.81,213.71,9.29503173]
[1736259095948,0.12549,213.81,213.7,9.29503173]
[1736259096253,0.12549,213.79,213.68,0.7016886]
[1736259096560,0.12549,213.77,213.69,9.29503173]
[1736259096760,0.12549,213.77,213.68,0.70178128]
[1736259096962,0.12549,213.77,213.69,9.29503173]
[1736259097633,0.12549,213.77,213.68,23.776884]
[1736259097833,0.12549,213.77,213.7,9.29503173]
[1736259099260,0.12549,213.77,213.72,9.29503173]
[1736259099439,1.94,213.78,213.72,9.29503173]
[1736259099845,0.12549,213.77,213.69,0.70170511]
[1736259100048,0.12549,213.77,213.7,9.29503173]
[1736259101259,20.12549,213.77,213.69,9.29503173]
[1736259101644,20.12549,213.77,213.67,39.218]
[1736259101843,20.12549,213.77,213.69,9.29503173]
[1736259102365,20.12549,213.77,213.7,9.29503173]
[1736259102958,20.12549,213.77,213.71,9.29503173]
[1736259104155,20.12549,213.77,213.72,9.29503173]
[1736259104357,0.12549,213.77,213.73,9.29503173]
[1736259104759,0.12549,213.77,213.72,9.29503173]
[1736259105366,0.12549,213.77,213.71,9.29503173]
[1736259106971,0.12549,213.77,213.68,23.776884]
[1736259106972,0.12549,213.77,213.7,9.29503173]
[1736259108268,20.12549,213.77,213.7,9.29503173]
[1736259108768,20.12549,213.77,213.68,23.776884]
[1736259108975,20.12549,213.77,213.7,9.29503173]
[1736259110276,20.12549,213.77,213.68,9.29503173]
[1736259110973,20.12549,213.77,213.64,11.7019]
[1736259111151,0.12549,213.75,213.67,9.29503173]
[1736259112248,0.12549,213.75,213.62,0.70192073]
[1736259112478,0.12549,213.75,213.67,9.29503173]
[1736259113581,0.12549,213.75,213.63,23.776884]
[1736259113749,20.0,213.76,213.7,9.29503173]
[1736259113955,21.94,213.76,213.71,9.29503173]
[1736259114169,0.12549,213.75,213.64,11.7019]
[1736259114474,0.12549,213.75,213.69,9.29503173]
[1736259115061,0.12549,213.75,213.7,9.29503173]
[1736259115979,0.12549,213.75,213.65,23.776884]
[1736259115980,0.12549,213.75,213.69,9.29503173]
[1736259117057,0.12549,213.75,213.68,9.29503173]
[1736259119278,0.12549,213.75,213.67,9.29503173]
[1736259119482,0.12549,213.75,213.65,26.0]
[1736259119778,0.12549,213.73,213.65,9.29503173]
[1736259119981,0.12549,213.73,213.66,9.29503173]
[1736259120195,0.12549,213.73,213.62,23.776884]
[1736259120356,0.12549,213.7,213.61,1.5827]
[1736259120552,0.12549,213.7,213.63,9.29503173]
[1736259122461,0.12549,213.7,213.62,9.29503173]
[1736259124187,0.12549,213.7,213.64,9.29503173]
[1736259125200,0.12549,213.7,213.62,23.776884]
[1736259125394,0.12549,213.7,213.64,9.29503173]
[1736259128104,0.12549,213.7,213.64,8.10603173]
[1736259128783,0.12549,213.7,213.63,9.29503173]